fUSD/lending_fUSD_20250125
["ID","MTS","AMOUNT","RATE_DAILY","PERIOD"]
[350336041,1737802238536,-377.18925057,0.00017876,2]
[350336043,1737802238545,-500.0,0.00017876,2]
[350336044,1737802238554,-500.0,0.00017876,2]
[350336045,1737802238564,-500.0,0.00017876,2]
[350336046,1737802238573,-500.0,0.00017876,2]
[350336047,1737802238583,-500.0,0.00017876,2]
[350336048,1737802238592,-554.79525899,0.00017876,2]
[350336049,1737802238601,-500.0,0.00017876,2]
[350336050,1737802238610,-500.0,0.00017876,2]
[350336051,1737802238619,-2064.77,0.00017876,2]
[350336052,1737802238629,-356.73359018,0.00017876,2]
[350336053,1737802238642,-143.26640982,0.00017876,2]
[350336054,1737802238651,-525.513223,0.00017876,2]
[350336055,1737802238666,-500.0,0.00017876,2]
[350336056,1737802238682,-500.0,0.00017876,2]
[350336057,1737802238692,-500.0,0.00017876,2]
[350336058,1737802238701,-500.0,0.00017876,2]
[350336059,1737802238711,-500.0,0.00017876,2]
[350336060,1737802238720,-592.05,0.00017876,2]
[350336061,1737802238730,-500.0,0.00017876,2]
[350336062,1737802238739,-500.0,0.00017876,2]
[350336063,1737802238748,-500.0,0.00017876,2]
[350336064,1737802238758,-500.0,0.00017876,2]
[350336065,1737802238767,-856.14,0.00017876,2]
[350336066,1737802238776,-500.0,0.00017876,2]
[350336067,1737802238786,-500.0,0.00017876,2]
[350336068,1737802238795,-500.0,0.00017876,2]
[350336069,1737802238804,-500.0,0.00017876,2]
[350336070,1737802238814,-1205.82,0.00017876,2]
[350336071,1737802238823,-2631.17,0.00017876,2]
[350336072,1737802238833,-1109.67,0.00017876,2]
[350336073,1737802238842,-1.37036718,0.00017876,2]
[350336074,1737802238854,-498.62963282,0.00017876,2]
[350336075,1737802238863,-500.0,0.00017876,2]
[350336076,1737802238873,-520.99,0.00017876,2]
[350336077,1737802238882,-500.0,0.00017876,2]
[350336078,1737802238891,-1137.71,0.00017876,2]
[350336079,1737802238900,-500.0,0.00017876,2]
[350336080,1737802238910,-500.0,0.00017876,2]
[350336081,1737802238919,-1507.51,0.00017876,2]
[350336082,1737802238928,-500.0,0.00017876,2]
[350336083,1737802238938,-500.0,0.00017876,2]
[350336084,1737802238948,-500.0,0.00017876,2]
[350336085,1737802238957,-1225.87,0.00017876,2]
[350336086,1737802238967,-1774.01,0.00017876,2]
[350336087,1737802238976,-500.0,0.00017876,2]
[350336088,1737802238986,-283.8,0.00017876,2]
[350336089,1737802238995,-2160.4,0.00017876,2]
[350336090,1737802239004,-500.0,0.00017876,2]
[350336091,1737802239014,-500.0,0.00017876,2]
[350336092,1737802239024,-500.0,0.00017876,2]
[350336093,1737802239034,-500.0,0.00017876,2]
[350336094,1737802239043,-500.0,0.00017876,2]
[350336095,1737802239052,-500.0,0.00017876,2]
[350336096,1737802239062,-500.0,0.00017876,2]
[350336097,1737802239073,-1527.94,0.00017876,2]
[350336098,1737802239082,-500.0,0.00017876,2]
[350336099,1737802239091,-537.2,0.00017876,2]
[350336100,1737802239101,-39.05373443,0.00017876,2]
[350336101,1737802239112,-460.94626557,0.00017876,2]
[350336102,1737802239122,-500.0,0.00017876,2]
[350336103,1737802239131,-553.14121323,0.00017876,2]
[350336104,1737802239140,-1839.61,0.00017876,2]
[350336105,1737802239150,-500.0,0.00017876,2]
[350336106,1737802239159,-508.65,0.00017876,2]
[350336107,1737802239168,-1334.52,0.00017876,2]
[350336108,1737802239178,-500.0,0.00017876,2]
[350336109,1737802239187,-500.0,0.00017876,2]
[350336110,1737802239197,-500.0,0.00017876,2]
[350336111,1737802239206,-10167.91777013,0.00017876,2]
[350336112,1737802239215,-500.0,0.00017876,2]
[350336113,1737802239224,-500.0,0.00017876,2]
[350336114,1737802239233,-500.0,0.00017876,2]
[350336115,1737802239247,-500.0,0.00017876,2]
[350336116,1737802239256,-1109.79,0.00017876,2]
[350336117,1737802239265,-1380.92,0.00017876,2]
[350336118,1737802239275,-500.0,0.00017876,2]
[350336119,1737802239285,-500.0,0.00017876,2]
[350336120,1737802239294,-903.85,0.00017876,2]
[350336121,1737802239303,-500.0,0.00017876,2]
[350336122,1737802239312,-500.0,0.00017876,2]
[350336123,1737802239323,-500.0,0.00017876,2]
[350336124,1737802239333,-1513.23,0.00017876,2]
[350336125,1737802239343,-500.0,0.00017876,2]
[350336126,1737802239352,-500.0,0.00017876,2]
[350336127,1737802239361,-500.0,0.00017876,2]
[350336128,1737802239371,-500.0,0.00017876,2]
[350336129,1737802239382,-500.0,0.00017876,2]
[350336130,1737802239391,-500.0,0.00017876,2]
[350336131,1737802239400,-593.47,0.00017876,2]
[350336132,1737802239411,-500.0,0.00017876,2]
[350336133,1737802239420,-208.91999781,0.00017876,2]
[350336134,1737802239432,-291.08000219,0.00017876,2]
[350336135,1737802239442,-500.0,0.00017876,2]
[350336136,1737802239451,-500.0,0.00017876,2]
[350336137,1737802239460,-500.0,0.00017876,2]
[350336138,1737802239470,-511.33,0.00017876,2]
[350336139,1737802239479,-500.0,0.00017876,2]
[350336140,1737802239488,-500.0,0.00017876,2]
[350336141,1737802239497,-500.0,0.00017876,2]
[350336142,1737802239506,-500.0,0.00017876,2]
[350336143,1737802239516,-500.0,0.00017876,2]
[350336144,1737802239526,-500.0,0.00017876,2]
[350336145,1737802239535,-500.0,0.00017876,2]
[350336146,1737802239544,-500.0,0.00017876,2]
[350336147,1737802239554,-500.0,0.00017876,2]
[350336148,1737802239564,-500.0,0.00017876,2]
[350336149,1737802239573,-500.0,0.00017876,2]
[350336150,1737802239583,-548.68,0.00017876,2]
[350336151,1737802239593,-500.0,0.00017876,2]
[350336152,1737802239605,-500.0,0.00017876,2]
[350336153,1737802239615,-500.0,0.00017876,2]
[350336154,1737802239623,-520.32,0.00017876,2]
[350336155,1737802239634,-500.0,0.00017876,2]
[350336156,1737802239644,-585.53,0.00017876,2]
[350336157,1737802239654,-592.24,0.00017876,2]
[350336158,1737802239664,-500.0,0.00017876,2]
[350336159,1737802239674,-500.0,0.00017876,2]
[350336160,1737802239683,-500.0,0.00017876,2]
[350336161,1737802239693,-920.68,0.00017876,2]
[350336162,1737802239702,-1568.47,0.00017876,2]
[350336163,1737802239711,-500.0,0.00017876,2]
[350336164,1737802239721,-500.0,0.00017876,2]
[350336165,1737802239731,-754.85,0.00017876,2]
[350336166,1737802239740,-500.0,0.00017876,2]
[350336167,1737802239750,-500.0,0.00017876,2]
[350336168,1737802239759,-697.11,0.00017876,2]
[350336169,1737802239768,-500.0,0.00017876,2]
[350336170,1737802239778,-507.35,0.00017876,2]
[350336171,1737802239787,-500.0,0.00017876,2]
[350336172,1737802239798,-500.0,0.00017876,2]
[350336173,1737802239807,-500.0,0.00017876,2]
[350336174,1737802239816,-513.21653149,0.00017876,2]
[350336175,1737802239825,-500.0,0.00017876,2]
[350336176,1737802239835,-500.0,0.00017876,2]
[350336177,1737802239845,-500.0,0.00017876,2]
[350336178,1737802239854,-500.0,0.00017876,2]
[350336179,1737802239864,-1533.71,0.00017876,2]
[350336180,1737802239873,-500.0,0.00017876,2]
[350336181,1737802239883,-660.4,0.00017876,2]
[350336182,1737802239892,-500.0,0.00017876,2]
[350336183,1737802239902,-500.0,0.00017876,2]
[350336184,1737802239910,-500.0,0.00017876,2]
[350336186,1737802239919,-97604.12318529,0.00017877,2]
[350336188,1737802239939,-292.65638165,0.00017877,2]
[350336189,1737802239980,-535.22450152,0.00017877,2]
[350336190,1737802239991,-21993.31902115,0.00017877,2]
[350336191,1737802240006,-1947.90605991,0.00017877,2]
[350336192,1737802240018,-282.55999991,0.00017877,2]
[350336193,1737802240030,-6588.26575236,0.00017877,2]
[350336194,1737802240046,-1995.78505043,0.00017877,2]
[350336195,1737802240057,-6197.76109983,0.00017877,2]
[350336196,1737802240069,-182952.25134795,0.00017877,2]
[350336197,1737802240079,-623.0,0.00017887,2]
[350336198,1737802240088,-684.73431645,0.00017889,2]
[350336199,1737802240097,-2059.31902601,0.000179,2]
[350336200,1737802240106,-1500.0,0.000179,6]
[350336201,1737802240116,-500.0,0.00017938,2]
[350336202,1737802240126,-500.0,0.00017939,2]
[350336203,1737802240136,-500.0,0.00017939,2]
[350336204,1737802240145,-500.0,0.00017939,2]
[350336205,1737802240154,-500.0,0.00017939,2]
[350336206,1737802240163,-500.0,0.00017939,2]
[350336207,1737802240173,-500.0,0.00017939,2]
[350336208,1737802240182,-500.0,0.00017939,2]
[350336209,1737802240191,-500.0,0.00017939,2]
[350336210,1737802240201,-500.0,0.00017939,2]
[350336211,1737802240210,-500.0,0.00017939,2]
[350336212,1737802240220,-500.0,0.00017939,2]
[350336213,1737802240229,-500.0,0.00017939,2]
[350336214,1737802240239,-500.0,0.00017939,2]
[350336215,1737802240251,-500.0,0.00017939,2]
[350336216,1737802240261,-500.0,0.00017939,2]
[350336217,1737802240270,-500.0,0.00017939,2]
[350336218,1737802240279,-500.0,0.00017939,2]
[350336219,1737802240290,-500.0,0.00017939,2]
[350336220,1737802240300,-500.0,0.00017939,2]
[350336221,1737802240309,-500.0,0.00017939,2]
[350336222,1737802240321,-500.0,0.00017939,2]
[350336223,1737802240330,-500.0,0.00017939,2]
[350336224,1737802240340,-500.0,0.00017939,2]
[350336225,1737802240349,-500.0,0.00017939,2]
[350336226,1737802240359,-500.0,0.00017939,2]
[350336227,1737802240368,-500.0,0.00017939,2]
[350336228,1737802240377,-500.0,0.00017939,2]
[350336229,1737802240387,-424.4983748,0.00017939,2]
[350336230,1737802240396,-500.0,0.00017939,2]
[350336231,1737802240405,-500.0,0.00017939,2]
[350336232,1737802240415,-500.0,0.00017939,2]
[350336233,1737802240424,-527.46931831,0.0001794,2]
[350336234,1737802240434,-500.0,0.0001794,2]
[350336235,1737802240443,-500.0,0.0001794,2]
[350336236,1737802240452,-500.0,0.0001794,2]
[350336237,1737802240461,-500.0,0.0001794,2]
[350336238,1737802240470,-500.0,0.0001794,2]
[350336239,1737802240480,-500.0,0.0001794,2]
[350336240,1737802240489,-500.0,0.0001794,2]
[350336241,1737802240498,-500.0,0.0001794,2]
[350336242,1737802240508,-500.0,0.0001794,2]
[350336244,1737802240517,-500.0,0.0001794,2]
[350336246,1737802240526,-500.0,0.0001794,2]
[350336248,1737802240535,-500.0,0.0001794,2]
[350336250,1737802240544,-300.0,0.0001794,2]
[350336252,1737802240554,-500.0,0.0001794,2]
[350336254,1737802240563,-500.0,0.0001794,2]
[350336256,1737802240571,-500.0,0.0001794,2]
[350336257,1737802240580,-500.0,0.0001794,2]
[350336259,1737802240590,-500.0,0.0001794,2]
[350336261,1737802240600,-500.0,0.0001794,2]
[350336263,1737802240609,-500.0,0.0001794,2]
[350336265,1737802240618,-500.0,0.0001794,2]
[350336267,1737802240627,-517.19003001,0.0001794,2]
[350336269,1737802240636,-500.0,0.0001794,2]
[350336271,1737802240645,-500.0,0.0001794,2]
[350336273,1737802240655,-500.0,0.0001794,2]
[350336275,1737802240664,-450.36117419,0.0001794,2]
[350336277,1737802240674,-36184.3016,0.00017977,2]
[350336279,1737802240683,-1920.2809,0.00017977,2]
[350336281,1737802240692,-5430.0786,0.00017977,2]
[350336283,1737802240701,-2302.181,0.00017997,2]
[350336285,1737802240711,-180.52674901,0.00017997,2]
[350336287,1737802240721,-300.0,0.00018012,2]
[350336289,1737802240730,-500.0,0.00018012,2]
[350336291,1737802240739,-500.0,0.00018012,2]
[350336293,1737802240748,-500.0,0.00018012,2]
[350336295,1737802240758,-532.03,0.00018012,2]
[350336297,1737802240767,-500.0,0.00018012,2]
[350336299,1737802240776,-500.0,0.00018012,2]
[350336301,1737802240785,-500.0,0.00018012,2]
[350336303,1737802240794,-988.76,0.00018012,2]
[350336304,1737802240803,-500.0,0.00018012,2]
[350336306,1737802240812,-500.0,0.00018012,2]
[350336308,1737802240821,-1721.11,0.00018012,2]
[350336310,1737802240830,-500.0,0.00018012,2]
[350336312,1737802240840,-500.0,0.00018012,2]
[350336314,1737802240849,-500.0,0.00018012,2]
[350336316,1737802240859,-500.0,0.00018012,2]
[350336318,1737802240868,-1293.15,0.00018012,2]
[350336320,1737802240877,-500.0,0.00018012,2]
[350336322,1737802240886,-500.0,0.00018013,2]
[350336324,1737802240895,-500.0,0.00018013,2]
[350336326,1737802240904,-500.0,0.00018013,2]
[350336328,1737802240913,-500.0,0.00018013,2]
[350336330,1737802240922,-500.0,0.00018013,2]
[350336331,1737802240931,-500.0,0.00018013,2]
[350336333,1737802240940,-500.0,0.00018013,2]
[350336335,1737802240950,-500.0,0.00018013,2]
[350336337,1737802240959,-500.0,0.00018013,2]
[350336339,1737802240968,-500.0,0.00018013,2]
[350336341,1737802240977,-500.0,0.00018013,2]
[350336343,1737802240987,-500.0,0.00018013,2]
[350336345,1737802240996,-500.0,0.00018013,2]
[350336347,1737802241005,-269.63723029,0.00018013,2]
[350336349,1737802241015,-197.738714,0.00018013,2]
[350336351,1737802241024,-500.0,0.00018013,2]
[350336353,1737802241033,-500.0,0.00018013,2]
[350336355,1737802241043,-500.0,0.00018013,2]
[350336357,1737802241052,-500.0,0.00018013,2]
[350336359,1737802241061,-500.0,0.00018013,2]
[350336361,1737802241071,-298.61209696,0.00018013,2]
[350336363,1737802241080,-500.0,0.00018013,2]
[350336365,1737802241090,-160.071777,0.00018013,2]
[350336367,1737802241099,-500.0,0.00018013,2]
[350336369,1737802241108,-500.0,0.00018013,2]
[350336371,1737802241120,-500.0,0.00018013,2]
[350336373,1737802241130,-500.0,0.00018013,2]
[350336375,1737802241139,-500.0,0.00018013,2]
[350336377,1737802241149,-500.0,0.00018013,2]
[350336379,1737802241157,-500.0,0.00018013,2]
[350336381,1737802241166,-500.0,0.00018013,2]
[350336383,1737802241175,-500.0,0.00018013,2]
[350336384,1737802241184,-500.0,0.00018013,2]
[350336396,1737802241317,-500.0,0.00018013,2]
[350336397,1737802241327,-500.0,0.00018013,2]
[350336398,1737802241337,-500.0,0.00018013,2]
[350336399,1737802241346,-500.0,0.00018013,2]
[350336400,1737802241356,-500.0,0.00018013,2]
[350336401,1737802241365,-500.0,0.00018013,2]
[350336402,1737802241375,-500.0,0.00018013,2]
[350336403,1737802241384,-500.0,0.00018013,2]
[350336404,1737802241393,-500.0,0.00018013,2]
[350336405,1737802241402,-500.0,0.00018013,2]
[350336406,1737802241411,-421.50031463,0.00018013,2]
[350336407,1737802241421,-500.0,0.00018013,2]
[350336408,1737802241430,-500.0,0.00018013,2]
[350336409,1737802241439,-500.0,0.00018013,2]
[350336410,1737802241449,-500.0,0.00018013,2]
[350336411,1737802241458,-500.0,0.00018013,2]
[350336412,1737802241468,-500.0,0.00018013,2]
[350336413,1737802241478,-500.0,0.00018013,2]
[350336414,1737802241487,-500.0,0.00018013,2]
[350336415,1737802241496,-500.0,0.00018013,2]
[350336416,1737802241506,-500.0,0.00018013,2]
[350336417,1737802241515,-2064.77,0.00018013,2]
[350336418,1737802241524,-500.0,0.00018013,2]
[350336419,1737802241533,-500.0,0.00018013,2]
[350336420,1737802241543,-500.0,0.00018013,2]
[350336421,1737802241553,-500.0,0.00018013,2]
[350336422,1737802241563,-500.0,0.00018013,2]
[350336423,1737802241572,-592.05,0.00018013,2]
[350336424,1737802241582,-500.0,0.00018013,2]
[350336425,1737802241593,-500.0,0.00018013,2]
[350336426,1737802241602,-500.0,0.00018013,2]
[350336427,1737802241611,-500.0,0.00018013,2]
[350336428,1737802241620,-856.14,0.00018013,2]
[350336429,1737802241629,-500.0,0.00018013,2]
[350336430,1737802241639,-500.0,0.00018013,2]
[350336431,1737802241649,-500.0,0.00018013,2]
[350336432,1737802241658,-500.0,0.00018013,2]
[350336433,1737802241668,-1205.82,0.00018013,2]
[350336434,1737802241677,-2631.17,0.00018013,2]
[350336435,1737802241686,-1109.67,0.00018013,2]
[350336436,1737802241696,-500.0,0.00018013,2]
[350336437,1737802241705,-500.0,0.00018013,2]
[350336438,1737802241715,-520.99,0.00018013,2]
[350336439,1737802241724,-500.0,0.00018013,2]
[350336440,1737802241733,-500.0,0.00018013,2]
[350336441,1737802241742,-1137.71,0.00018013,2]
[350336442,1737802241752,-500.0,0.00018013,2]
[350336443,1737802241761,-1507.51,0.00018013,2]
[350336444,1737802241770,-500.0,0.00018013,2]
[350336445,1737802241780,-500.0,0.00018013,2]
[350336446,1737802241790,-1225.87,0.00018013,2]
[350336447,1737802241800,-1774.01,0.00018013,2]
[350336448,1737802241810,-500.0,0.00018013,2]
[350336449,1737802241821,-2160.4,0.00018013,2]
[350336450,1737802241831,-500.0,0.00018013,2]
[350336451,1737802241842,-500.0,0.00018013,2]
[350336452,1737802241851,-157.57288745,0.00018013,2]
[350336453,1737802241861,-500.0,0.00018013,2]
[350336454,1737802241871,-500.0,0.00018013,2]
[350336455,1737802241880,-500.0,0.00018013,2]
[350336456,1737802241889,-1527.94,0.00018013,2]
[350336457,1737802241899,-500.0,0.00018013,2]
[350336458,1737802241909,-537.2,0.00018013,2]
[350336459,1737802241918,-500.0,0.00018013,2]
[350336460,1737802241929,-500.0,0.00018013,2]
[350336461,1737802241939,-1839.61,0.00018013,2]
[350336462,1737802241948,-500.0,0.00018013,2]
[350336463,1737802241958,-508.65,0.00018013,2]
[350336464,1737802241968,-1334.52,0.00018013,2]
[350336465,1737802241978,-500.0,0.00018013,2]
[350336466,1737802241987,-532.88543673,0.00018013,2]
[350336467,1737802241997,-500.0,0.00018013,2]
[350336468,1737802242007,-500.0,0.00018013,2]
[350336469,1737802242017,-500.0,0.00018013,2]
[350336470,1737802242026,-500.0,0.00018013,2]
[350336471,1737802242036,-1109.79,0.00018013,2]
[350336472,1737802242045,-1380.92,0.00018013,2]
[350336473,1737802242055,-500.0,0.00018013,2]
[350336474,1737802242064,-181.98,0.00018013,2]
[350336475,1737802242073,-903.85,0.00018013,2]
[350336476,1737802242083,-500.0,0.00018013,2]
[350336477,1737802242093,-500.0,0.00018013,2]
[350336478,1737802242102,-500.0,0.00018013,2]
[350336479,1737802242111,-1513.23,0.00018013,2]
[350336480,1737802242120,-500.0,0.00018013,2]
[350336481,1737802242129,-500.0,0.00018013,2]
[350336482,1737802242139,-500.0,0.00018013,2]
[350336483,1737802242149,-500.0,0.00018013,2]
[350336484,1737802242158,-500.0,0.00018013,2]
[350336485,1737802242167,-593.47,0.00018013,2]
[350336486,1737802242176,-500.0,0.00018013,2]
[350336487,1737802242186,-500.0,0.00018013,2]
[350336488,1737802242195,-500.0,0.00018013,2]
[350336489,1737802242205,-500.0,0.00018013,2]
[350336490,1737802242215,-500.0,0.00018013,2]
[350336491,1737802242224,-511.33,0.00018013,2]
[350336492,1737802242234,-500.0,0.00018013,2]
[350336493,1737802242247,-500.0,0.00018013,2]
[350336494,1737802242257,-500.0,0.00018013,2]
[350336495,1737802242266,-500.0,0.00018013,2]
[350336496,1737802242276,-192.00801961,0.00018013,2]
[350336497,1737802242286,-238.6,0.00018013,2]
[350336498,1737802242296,-500.0,0.00018013,2]
[350336499,1737802242307,-548.68,0.00018013,2]
[350336500,1737802242317,-500.0,0.00018013,2]
[350336501,1737802242327,-500.0,0.00018013,2]
[350336502,1737802242337,-520.32,0.00018013,2]
[350336503,1737802242347,-585.53,0.00018013,2]
[350336504,1737802242356,-592.24,0.00018013,2]
[350336505,1737802242365,-500.0,0.00018013,2]
[350336506,1737802242375,-920.68,0.00018013,2]
[350336507,1737802242384,-1568.47,0.00018013,2]
[350336508,1737802242393,-500.0,0.00018013,2]
[350336509,1737802242403,-754.85,0.00018013,2]
[350336510,1737802242412,-500.0,0.00018013,2]
[350336511,1737802242421,-697.11,0.00018013,2]
[350336512,1737802242431,-293.27981002,0.00018013,2]
[350336513,1737802242440,-507.35,0.00018013,2]
[350336514,1737802242450,-500.0,0.00018013,2]
[350336515,1737802242459,-500.0,0.00018013,2]
[350336516,1737802242468,-500.0,0.00018013,2]
[350336517,1737802242477,-500.0,0.00018013,2]
[350336518,1737802242486,-1533.71,0.00018013,2]
[350336519,1737802242495,-500.0,0.00018013,2]
[350336520,1737802242504,-660.4,0.00018013,2]
[350336521,1737802242514,-473.76175792,0.00018013,2]
[350336522,1737802242524,-500.0,0.00018013,2]
[350336523,1737802242533,-2059.31902583,0.00018038,2]
[350336524,1737802242542,-500.0,0.00018076,2]
[350336525,1737802242552,-500.0,0.00018076,2]
[350336526,1737802242561,-500.0,0.00018076,2]
[350336527,1737802242570,-500.0,0.00018076,2]
[350336528,1737802242580,-522.96873674,0.00018076,2]
[350336529,1737802242589,-500.0,0.00018076,2]
[350336530,1737802242598,-500.0,0.00018076,2]
[350336531,1737802242608,-500.0,0.00018076,2]
[350336532,1737802242617,-526.75,0.00018076,2]
[350336533,1737802242627,-500.0,0.00018076,2]
[350336535,1737802242636,-500.0,0.00018076,2]
[350336537,1737802242646,-500.0,0.00018076,2]
[350336538,1737802242656,-500.0,0.00018076,2]
[350336539,1737802242665,-500.0,0.00018076,2]
[350336541,1737802242675,-500.0,0.00018076,2]
[350336542,1737802242686,-500.0,0.00018076,2]
[350336543,1737802242695,-500.0,0.00018076,2]
[350336545,1737802242705,-500.0,0.00018076,2]
[350336547,1737802242715,-500.0,0.00018076,2]
[350336549,1737802242724,-500.0,0.00018076,2]
[350336550,1737802242733,-500.0,0.00018076,2]
[350336551,1737802242743,-500.0,0.00018076,2]
[350336552,1737802242753,-500.0,0.00018076,2]
[350336554,1737802242763,-1115.57,0.00018076,2]
[350336556,1737802242772,-500.0,0.00018076,2]
[350336558,1737802242781,-500.0,0.00018076,2]
[350336561,1737802242791,-500.0,0.00018076,2]
[350336564,1737802242800,-823.1,0.00018076,2]
[350336567,1737802242809,-500.0,0.00018076,2]
[350336570,1737802242820,-1000.0,0.00018076,2]
[350336571,1737802242830,-568.87,0.00018076,2]
[350336573,1737802242839,-500.0,0.00018076,2]
[350336575,1737802242848,-994.33,0.00018076,2]
[350336577,1737802242858,-885.18,0.00018076,2]
[350336578,1737802242867,-500.0,0.00018076,2]
[350336579,1737802242877,-500.0,0.00018076,2]
[350336580,1737802242888,-99254.70768802,0.00018077,2]
[350336581,1737802242898,-500.0,0.00018077,2]
[350336582,1737802242907,-500.0,0.00018077,2]
[350336583,1737802242917,-288.9919301,0.00018077,2]
[350336584,1737802242927,-500.0,0.00018077,2]
[350336585,1737802242937,-500.0,0.00018077,2]
[350336586,1737802242947,-500.0,0.00018077,2]
[350336587,1737802242956,-500.0,0.00018077,2]
[350336588,1737802242966,-464.58094647,0.00018077,2]
[350336589,1737802242976,-500.0,0.00018077,2]
[350336590,1737802242985,-209.06214714,0.00018077,2]
[350336591,1737802242995,-500.0,0.00018077,2]
[350336592,1737802243004,-616.64,0.00018077,2]
[350336593,1737802243014,-500.0,0.00018077,2]
[350336594,1737802243023,-609.06801987,0.00018077,2]
[350336595,1737802243033,-500.0,0.00018077,2]
[350336596,1737802243042,-500.0,0.00018078,2]
[350336597,1737802243051,-1003.36,0.00018082,2]
[350336598,1737802243061,-341.1918,0.00018113,2]
[350336599,1737802243071,-17437.83507138,0.00018114,2]
[350336600,1737802243080,-1018.94489109,0.00018123,2]
[350336601,1737802243090,-8613.14024369,0.00018144,2]
[350336602,1737802243098,-500.0,0.00018149,2]
[350336603,1737802243107,-500.0,0.00018149,2]
[350336604,1737802243116,-500.0,0.00018149,2]
[350336605,1737802243126,-532.03,0.00018149,2]
[350336606,1737802243136,-500.0,0.00018149,2]
[350336607,1737802243145,-500.0,0.00018149,2]
[350336608,1737802243155,-500.0,0.00018149,2]
[350336609,1737802243165,-988.76,0.00018149,2]
[350336610,1737802243174,-500.0,0.00018149,2]
[350336611,1737802243183,-500.0,0.00018149,2]
[350336612,1737802243192,-1721.11,0.00018149,2]
[350336613,1737802243202,-500.0,0.00018149,2]
[350336614,1737802243211,-500.0,0.00018149,2]
[350336615,1737802243221,-500.0,0.00018149,2]
[350336616,1737802243230,-500.0,0.00018149,2]
[350336617,1737802243240,-1293.15,0.00018149,2]
[350336618,1737802243252,-500.0,0.00018149,2]
[350336619,1737802243261,-500.0,0.0001815,2]
[350336620,1737802243271,-500.0,0.0001815,2]
[350336621,1737802243280,-500.0,0.0001815,2]
[350336622,1737802243291,-500.0,0.0001815,2]
[350336623,1737802243300,-500.0,0.0001815,2]
[350336624,1737802243309,-500.0,0.0001815,2]
[350336625,1737802243319,-500.0,0.0001815,2]
[350336626,1737802243328,-500.0,0.0001815,2]
[350336627,1737802243338,-197.738714,0.0001815,2]
[350336628,1737802243347,-500.0,0.0001815,2]
[350336629,1737802243356,-500.0,0.0001815,2]
[350336630,1737802243366,-500.0,0.0001815,2]
[350336631,1737802243376,-500.0,0.0001815,2]
[350336632,1737802243385,-160.071777,0.0001815,2]
[350336633,1737802243395,-500.0,0.0001815,2]
[350336634,1737802243404,-500.0,0.0001815,2]
[350336635,1737802243413,-500.0,0.0001815,2]
[350336636,1737802243422,-294.74590717,0.0001815,2]
[350336637,1737802243432,-500.0,0.0001815,2]
[350336638,1737802243441,-500.0,0.0001815,2]
[350336639,1737802243451,-500.0,0.0001815,2]
[350336640,1737802243461,-500.0,0.0001815,2]
[350336641,1737802243471,-500.0,0.0001815,2]
[350336642,1737802243481,-500.0,0.0001815,2]
[350336643,1737802243491,-500.0,0.0001815,2]